[Event "*** SCC Grand Prix: Titled Tuesday Blitz"]
[Site "Chess.com"]
[Date "2020.09.29"]
[Round "5"]
[White "alexgo05"]
[Black "A-S-00"]
[Result "1/2-1/2"]
[WhiteElo "2414"]
[BlackElo "2251"]
[TimeControl "180+1"]
[EndTime "10:55:55 PDT"]
[Termination "Game drawn by repetition"]

1. e4 {[%clk 0:03:00.9]} 1... c5 {[%clk 0:02:59]} 2. Nf3 {[%clk 0:03:01.2]} 2...
Nc6 {[%clk 0:02:56.9]} 3. d4 {[%clk 0:02:59.5]} 3... cxd4 {[%clk 0:02:56.4]} 4.
Nxd4 {[%clk 0:03:00.4]} 4... Nf6 {[%clk 0:02:56.2]} 5. Nc3 {[%clk 0:03:01]} 5...
e6 {[%clk 0:02:55.7]} 6. Ndb5 {[%clk 0:02:58.7]} 6... Bb4 {[%clk 0:02:55.2]} 7.
Bf4 {[%clk 0:02:57.7]} 7... e5 {[%clk 0:02:49]} 8. Bg5 {[%clk 0:02:57]} 8... d6
{[%clk 0:02:26]} 9. a3 {[%clk 0:02:53.3]} 9... Bxc3+ {[%clk 0:02:24.9]} 10. Nxc3
{[%clk 0:02:54.2]} 10... h6 {[%clk 0:02:09.4]} 11. Bxf6 {[%clk 0:02:28.6]} 11...
Qxf6 {[%clk 0:02:06.4]} 12. Nd5 {[%clk 0:02:28.9]} 12... Qd8 {[%clk 0:02:04.4]}
13. Bc4 {[%clk 0:02:27.4]} 13... O-O {[%clk 0:02:02]} 14. O-O {[%clk 0:02:26.7]}
14... Be6 {[%clk 0:02:00.2]} 15. Qd2 {[%clk 0:02:13.1]} 15... a6 {[%clk
0:01:55.8]} 16. Rad1 {[%clk 0:02:04.3]} 16... b5 {[%clk 0:01:53.3]} 17. Ba2
{[%clk 0:02:04.2]} 17... Rc8 {[%clk 0:01:45.4]} 18. c3 {[%clk 0:02:03.8]} 18...
Na5 {[%clk 0:01:40.5]} 19. b4 {[%clk 0:01:48]} 19... Nc4 {[%clk 0:01:38.2]} 20.
Bxc4 {[%clk 0:01:47.9]} 20... Rxc4 {[%clk 0:01:38]} 21. Ne3 {[%clk 0:01:48.3]}
21... Rc6 {[%clk 0:01:32.9]} 22. Nd5 {[%clk 0:01:26.1]} 22... Bxd5 {[%clk
0:01:25]} 23. exd5 {[%clk 0:01:15.9]} 23... Rc4 {[%clk 0:01:24]} 24. Rfe1 {[%clk
0:01:14.5]} 24... Qc7 {[%clk 0:01:21.4]} 25. Re3 {[%clk 0:01:13.2]} 25... f5
{[%clk 0:01:19.3]} 26. f3 {[%clk 0:01:11.2]} 26... Rc8 {[%clk 0:01:16.4]} 27.
Rc1 {[%clk 0:01:09.6]} 27... a5 {[%clk 0:01:11.8]} 28. Rb1 {[%clk 0:00:57.3]}
28... axb4 {[%clk 0:01:05.7]} 29. cxb4 {[%clk 0:00:54.3]} 29... Rc2 {[%clk
0:00:41.6]} 30. Qd3 {[%clk 0:00:53.9]} 30... Rc1+ {[%clk 0:00:37.3]} 31. Rxc1
{[%clk 0:00:52.4]} 31... Qxc1+ {[%clk 0:00:35.8]} 32. Kf2 {[%clk 0:00:52.4]}
32... Qc2+ {[%clk 0:00:18.4]} 33. Qxc2 {[%clk 0:00:39]} 33... Rxc2+ {[%clk
0:00:17.6]} 34. Re2 {[%clk 0:00:39.6]} 34... Rc3 {[%clk 0:00:17.8]} 35. Ra2
{[%clk 0:00:39.4]} 35... Rd3 {[%clk 0:00:17.9]} 36. a4 {[%clk 0:00:39.3]} 36...
bxa4 {[%clk 0:00:17.8]} 37. Rxa4 {[%clk 0:00:31.8]} 37... Rxd5 {[%clk
0:00:18.7]} 38. Ra8+ {[%clk 0:00:28.8]} 38... Kf7 {[%clk 0:00:18.2]} 39. Rb8
{[%clk 0:00:29]} 39... Rd2+ {[%clk 0:00:17.5]} 40. Kf1 {[%clk 0:00:29.5]} 40...
d5 {[%clk 0:00:16.6]} 41. b5 {[%clk 0:00:30.1]} 41... Rb2 {[%clk 0:00:16.3]} 42.
b6 {[%clk 0:00:30.3]} 42... d4 {[%clk 0:00:16.6]} 43. b7 {[%clk 0:00:27.9]}
43... e4 {[%clk 0:00:16.9]} 44. fxe4 {[%clk 0:00:24.2]} 44... fxe4 {[%clk
0:00:17.1]} 45. Ke1 {[%clk 0:00:23.7]} 45... Kg6 {[%clk 0:00:16.6]} 46. Re8
{[%clk 0:00:21.4]} 46... Rxb7 {[%clk 0:00:15.4]} 47. Rxe4 {[%clk 0:00:21.9]}
47... Rb2 {[%clk 0:00:14.9]} 48. Kf1 {[%clk 0:00:17.9]} 48... Rd2 {[%clk
0:00:14.6]} 49. Rg4+ {[%clk 0:00:13.6]} 49... Kf6 {[%clk 0:00:14.5]} 50. Ke1
{[%clk 0:00:13.5]} 50... Rd3 {[%clk 0:00:13.7]} 51. Ke2 {[%clk 0:00:13.9]} 51...
Re3+ {[%clk 0:00:13.8]} 52. Kf2 {[%clk 0:00:14.5]} 52... Rd3 {[%clk 0:00:13.8]}
53. Ke2 {[%clk 0:00:14.7]} 53... Re3+ {[%clk 0:00:14]} 54. Kf2 {[%clk
0:00:15.3]} 54... Rd3 {[%clk 0:00:11]} 55. Ke2 {[%clk 0:00:14.3]} 1/2-1/2

[Event "*** SCC Grand Prix: Titled Tuesday Blitz"]
[Site "Chess.com"]
[Date "2020.09.29"]
[Round "5"]
[White "BAS8892"]
[Black "Jospem"]
[Result "0-1"]
[WhiteElo "2669"]
[BlackElo "2962"]
[TimeControl "180+1"]
[EndTime "10:55:56 PDT"]
[Termination "Jospem won by resignation"]

1. d4 {[%clk 0:03:00.9]} 1... Nf6 {[%clk 0:02:58.8]} 2. Bf4 {[%clk 0:02:59.5]}
2... e6 {[%clk 0:02:58.2]} 3. e3 {[%clk 0:02:58.4]} 3... b6 {[%clk 0:02:58.3]}
4. Nf3 {[%clk 0:02:54.4]} 4... Bb7 {[%clk 0:02:58]} 5. Nbd2 {[%clk 0:02:53.9]}
5... Be7 {[%clk 0:02:57.2]} 6. h3 {[%clk 0:02:52.4]} 6... O-O {[%clk 0:02:56.9]}
7. Bd3 {[%clk 0:02:51.5]} 7... c5 {[%clk 0:02:57.4]} 8. c3 {[%clk 0:02:51]} 8...
cxd4 {[%clk 0:02:57.8]} 9. exd4 {[%clk 0:02:50.6]} 9... d6 {[%clk 0:02:58.4]}
10. O-O {[%clk 0:02:50.1]} 10... Nbd7 {[%clk 0:02:58.5]} 11. Re1 {[%clk
0:02:49.5]} 11... a6 {[%clk 0:02:58.3]} 12. a4 {[%clk 0:02:49.1]} 12... h6
{[%clk 0:02:55.6]} 13. Nc4 {[%clk 0:02:48.5]} 13... Qc7 {[%clk 0:02:55.6]} 14.
Bg3 {[%clk 0:02:34.3]} 14... Bc6 {[%clk 0:02:54.6]} 15. Qe2 {[%clk 0:02:22.4]}
15... Rfe8 {[%clk 0:02:48.5]} 16. b4 {[%clk 0:02:18]} 16... Bf8 {[%clk
0:02:43.8]} 17. Reb1 {[%clk 0:01:36.6]} 17... a5 {[%clk 0:02:14.1]} 18. b5
{[%clk 0:01:31.9]} 18... Bb7 {[%clk 0:02:08.6]} 19. Re1 {[%clk 0:01:26.2]} 19...
Rac8 {[%clk 0:02:02.8]} 20. Rac1 {[%clk 0:01:25]} 20... Qb8 {[%clk 0:02:02.2]}
21. Qa2 {[%clk 0:01:06.6]} 21... Bd5 {[%clk 0:01:58.1]} 22. Nfd2 {[%clk
0:01:02.6]} 22... Qa8 {[%clk 0:01:56.6]} 23. Bf1 {[%clk 0:01:01.7]} 23... e5
{[%clk 0:01:56.1]} 24. Qb2 {[%clk 0:00:58.9]} 24... Re6 {[%clk 0:01:31.9]} 25.
Ne3 {[%clk 0:00:53]} 25... Bb7 {[%clk 0:01:30.5]} 26. Nf5 {[%clk 0:00:52.2]}
26... g6 {[%clk 0:01:27.3]} 27. Ne3 {[%clk 0:00:50.4]} 27... h5 {[%clk
0:01:27.3]} 28. Nec4 {[%clk 0:00:45.5]} 28... Rce8 {[%clk 0:01:10.7]} 29. Ne3
{[%clk 0:00:30.1]} 29... Bh6 {[%clk 0:00:58.1]} 30. Bc4 {[%clk 0:00:28.6]} 30...
d5 {[%clk 0:00:57.3]} 31. Bf1 {[%clk 0:00:28]} 31... Kh7 {[%clk 0:00:41.5]} 32.
Nf3 {[%clk 0:00:26.8]} 32... e4 {[%clk 0:00:40.2]} 33. Ne5 {[%clk 0:00:26.6]}
33... Nxe5 {[%clk 0:00:40.3]} 34. Bxe5 {[%clk 0:00:26.1]} 34... Nd7 {[%clk
0:00:39.9]} 35. Bg3 {[%clk 0:00:25.6]} 35... f5 {[%clk 0:00:39.9]} 36. Bh2
{[%clk 0:00:22.7]} 36... f4 {[%clk 0:00:39.9]} 37. Nc2 {[%clk 0:00:22.8]} 37...
g5 {[%clk 0:00:35.3]} 38. c4 {[%clk 0:00:21.9]} 38... g4 {[%clk 0:00:35.7]} 39.
Rcd1 {[%clk 0:00:16.4]} 39... Rg8 {[%clk 0:00:31.2]} 40. g3 {[%clk 0:00:12]}
40... f3 {[%clk 0:00:31.4]} 41. Ne3 {[%clk 0:00:11.7]} 41... Nf6 {[%clk
0:00:21.3]} 42. cxd5 {[%clk 0:00:10.9]} 42... Bxd5 {[%clk 0:00:18.8]} 43. Nxd5
{[%clk 0:00:09.5]} 43... Qxd5 {[%clk 0:00:19.4]} 44. Qc2 {[%clk 0:00:09.4]}
44... Re7 {[%clk 0:00:07.7]} 45. Bc4 {[%clk 0:00:09.3]} 45... Rc8 {[%clk
0:00:08.3]} 46. Rc1 {[%clk 0:00:09.3]} 46... Qd6 {[%clk 0:00:06.8]} 47. d5
{[%clk 0:00:08.1]} 47... Bxc1 {[%clk 0:00:06.5]} 48. Rxc1 {[%clk 0:00:05.8]}
48... Rec7 {[%clk 0:00:06.7]} 49. hxg4 {[%clk 0:00:03.2]} 49... Rxc4 {[%clk
0:00:06.5]} 50. Qxc4 {[%clk 0:00:03.2]} 50... Rxc4 {[%clk 0:00:07.4]} 51. Rxc4
{[%clk 0:00:02.9]} 51... Qxd5 {[%clk 0:00:07.6]} 0-1

[Event "*** SCC Grand Prix: Titled Tuesday Blitz"]
[Site "Chess.com"]
[Date "2020.09.29"]
[Round "5"]
[White "ViditYT"]
[Black "Guenplen"]
[Result "0-1"]
[WhiteElo "2719"]
[BlackElo "2880"]
[TimeControl "180+1"]
[EndTime "10:55:58 PDT"]
[Termination "Guenplen won by resignation"]

1. Nf3 {[%clk 0:02:48.9]} 1... d5 {[%clk 0:02:59.4]} 2. g3 {[%clk 0:02:48.4]}
2... c6 {[%clk 0:02:50.6]} 3. Bg2 {[%clk 0:02:48.4]} 3... Bg4 {[%clk 0:02:50]}
4. O-O {[%clk 0:02:48.8]} 4... Nd7 {[%clk 0:02:49.6]} 5. h3 {[%clk 0:02:49.7]}
5... Bh5 {[%clk 0:02:49]} 6. d3 {[%clk 0:02:49.5]} 6... e6 {[%clk 0:02:46.9]} 7.
Qe1 {[%clk 0:02:48.1]} 7... Bd6 {[%clk 0:02:44.4]} 8. e4 {[%clk 0:02:48.4]} 8...
Ne7 {[%clk 0:02:44.2]} 9. Nc3 {[%clk 0:02:44]} 9... O-O {[%clk 0:02:42.9]} 10.
Nh4 {[%clk 0:02:37.7]} 10... Ng6 {[%clk 0:02:36.6]} 11. Nxg6 {[%clk 0:02:34.3]}
11... Bxg6 {[%clk 0:02:37.5]} 12. f4 {[%clk 0:02:33.7]} 12... Re8 {[%clk
0:02:31.5]} 13. Be3 {[%clk 0:02:22.5]} 13... f6 {[%clk 0:02:18.2]} 14. Qf2
{[%clk 0:02:13.9]} 14... dxe4 {[%clk 0:02:10.2]} 15. dxe4 {[%clk 0:02:10.6]}
15... e5 {[%clk 0:02:04.8]} 16. Rad1 {[%clk 0:02:09.9]} 16... Qe7 {[%clk
0:02:02.6]} 17. Kh1 {[%clk 0:01:58.4]} 17... Red8 {[%clk 0:01:58.5]} 18. Rd2
{[%clk 0:01:43.7]} 18... Bc7 {[%clk 0:01:44]} 19. Rfd1 {[%clk 0:01:40.4]} 19...
Nb6 {[%clk 0:01:38.2]} 20. Bc5 {[%clk 0:01:35.9]} 20... Rxd2 {[%clk 0:01:28.2]}
21. Rxd2 {[%clk 0:01:36.8]} 21... Qe8 {[%clk 0:01:27.6]} 22. b3 {[%clk
0:01:34.4]} 22... Rd8 {[%clk 0:01:25.6]} 23. a4 {[%clk 0:01:09.7]} 23... Nc8
{[%clk 0:01:16.3]} 24. Be3 {[%clk 0:00:56.6]} 24... Rxd2 {[%clk 0:01:05.9]} 25.
Qxd2 {[%clk 0:00:56.2]} 25... exf4 {[%clk 0:01:02.7]} 26. gxf4 {[%clk
0:00:51.5]} 26... Bf7 {[%clk 0:00:58.3]} 27. Qd3 {[%clk 0:00:47.5]} 27... a6
{[%clk 0:00:55.1]} 28. Ne2 {[%clk 0:00:44.1]} 28... Ne7 {[%clk 0:00:54.1]} 29.
f5 {[%clk 0:00:33.9]} 29... Nc8 {[%clk 0:00:49.6]} 30. Kg1 {[%clk 0:00:30.3]}
30... h6 {[%clk 0:00:46.9]} 31. Kf1 {[%clk 0:00:29.2]} 31... Nb6 {[%clk
0:00:39.9]} 32. Nf4 {[%clk 0:00:17]} 32... Nd7 {[%clk 0:00:39.1]} 33. Qd2 {[%clk
0:00:16.2]} 33... Ne5 {[%clk 0:00:38.3]} 34. Nd3 {[%clk 0:00:16.3]} 34... Kh7
{[%clk 0:00:37.1]} 35. Nxe5 {[%clk 0:00:13.8]} 35... Qxe5 {[%clk 0:00:36.6]} 36.
Qd7 {[%clk 0:00:13.7]} 36... Bh5 {[%clk 0:00:33.4]} 37. Qd2 {[%clk 0:00:09.8]}
37... b5 {[%clk 0:00:29.3]} 38. axb5 {[%clk 0:00:07.7]} 38... cxb5 {[%clk
0:00:28.3]} 39. Qd4 {[%clk 0:00:07.8]} 39... Qe7 {[%clk 0:00:21.1]} 40. Kf2
{[%clk 0:00:07.2]} 40... Be5 {[%clk 0:00:17.6]} 41. Qb6 {[%clk 0:00:06.6]} 41...
Qa3 {[%clk 0:00:13.8]} 42. Bf3 {[%clk 0:00:06.3]} 42... Bxf3 {[%clk 0:00:13.3]}
43. Kxf3 {[%clk 0:00:07.2]} 43... Qa1 {[%clk 0:00:14]} 44. Ke2 {[%clk
0:00:03.6]} 44... Qh1 {[%clk 0:00:12.5]} 45. Qc6 {[%clk 0:00:01.8]} 45... Qxh3
{[%clk 0:00:10.1]} 46. c4 {[%clk 0:00:02.1]} 46... Qg2+ {[%clk 0:00:06.7]} 47.
Kd3 {[%clk 0:00:02.5]} 47... Qf1+ {[%clk 0:00:06.5]} 48. Kd2 {[%clk 0:00:02.4]}
48... b4 {[%clk 0:00:05.9]} 49. c5 {[%clk 0:00:02.1]} 49... Bc3+ {[%clk
0:00:06]} 50. Kc2 {[%clk 0:00:02.7]} 50... Qe2+ {[%clk 0:00:06.3]} 0-1

[Event "*** SCC Grand Prix: Titled Tuesday Blitz"]
[Site "Chess.com"]
[Date "2020.09.29"]
[Round "5"]
[White "M1711"]
[Black "Meri-Arabidze"]
[Result "1-0"]
[WhiteElo "2488"]
[BlackElo "2700"]
[TimeControl "180+1"]
[EndTime "10:55:58 PDT"]
[Termination "M1711 won on time"]

1. e4 {[%clk 0:03:00.8]} 1... c5 {[%clk 0:02:59.5]} 2. Nf3 {[%clk 0:02:56.5]}
2... e6 {[%clk 0:02:59.8]} 3. d4 {[%clk 0:02:56.1]} 3... cxd4 {[%clk 0:03:00.7]}
4. Bg5 {[%clk 0:02:56.3]} 4... Ne7 {[%clk 0:02:47.9]} 5. c3 {[%clk 0:02:47.2]}
5... dxc3 {[%clk 0:02:43.8]} 6. Nxc3 {[%clk 0:02:48.1]} 6... a6 {[%clk
0:02:43.7]} 7. Bc4 {[%clk 0:02:42]} 7... h6 {[%clk 0:02:40.7]} 8. Bh4 {[%clk
0:02:41.2]} 8... b5 {[%clk 0:02:34.5]} 9. Bb3 {[%clk 0:02:40.9]} 9... Qb6 {[%clk
0:02:27.8]} 10. Qe2 {[%clk 0:02:36.9]} 10... Ng6 {[%clk 0:02:26]} 11. Bg3 {[%clk
0:02:29.6]} 11... Bb4 {[%clk 0:02:23.3]} 12. Rc1 {[%clk 0:02:23.1]} 12... O-O
{[%clk 0:02:20.8]} 13. O-O {[%clk 0:02:21.6]} 13... Bb7 {[%clk 0:02:19.4]} 14.
Rfd1 {[%clk 0:02:18.9]} 14... Bc6 {[%clk 0:01:32.5]} 15. h4 {[%clk 0:01:50.7]}
15... Qb7 {[%clk 0:01:10.4]} 16. Nd5 {[%clk 0:01:43.7]} 16... Bxd5 {[%clk
0:00:57.3]} 17. exd5 {[%clk 0:01:44.6]} 17... a5 {[%clk 0:00:50.9]} 18. h5
{[%clk 0:01:38]} 18... Ne7 {[%clk 0:00:50]} 19. Rc7 {[%clk 0:01:24.1]} 19... Qb6
{[%clk 0:00:42.5]} 20. dxe6 {[%clk 0:01:15.5]} 20... dxe6 {[%clk 0:00:43.4]} 21.
a3 {[%clk 0:01:06.7]} 21... Nf5 {[%clk 0:00:42.6]} 22. Be5 {[%clk 0:00:55.5]}
22... Bd6 {[%clk 0:00:40.4]} 23. Rcc1 {[%clk 0:00:52.6]} 23... a4 {[%clk
0:00:35.7]} 24. Bc2 {[%clk 0:00:51]} 24... Bxe5 {[%clk 0:00:33.4]} 25. Nxe5
{[%clk 0:00:51.3]} 25... Nd4 {[%clk 0:00:31.6]} 26. Qe4 {[%clk 0:00:33.6]} 26...
Nxc2 {[%clk 0:00:31.7]} 27. Qxa8 {[%clk 0:00:33.8]} 27... Nd4 {[%clk 0:00:28.9]}
28. Qe4 {[%clk 0:00:31.1]} 28... Nb3 {[%clk 0:00:28.2]} 29. Rc3 {[%clk
0:00:28.3]} 29... Na6 {[%clk 0:00:22.2]} 30. Rc6 {[%clk 0:00:22]} 30... Qa5
{[%clk 0:00:20.4]} 31. Nd7 {[%clk 0:00:19.4]} 31... Re8 {[%clk 0:00:18.2]} 32.
Qg4 {[%clk 0:00:17.7]} 32... Kh8 {[%clk 0:00:16.8]} 33. Rcd6 {[%clk 0:00:16.5]}
33... Nac5 {[%clk 0:00:15.6]} 34. Ne5 {[%clk 0:00:15.9]} 34... Rf8 {[%clk
0:00:14.2]} 35. Rd8 {[%clk 0:00:15]} 35... Kg8 {[%clk 0:00:10.2]} 36. Rxf8+
{[%clk 0:00:07.9]} 36... Kxf8 {[%clk 0:00:11.1]} 37. Qf3 {[%clk 0:00:08.5]}
37... Qa7 {[%clk 0:00:06.7]} 38. Rd7 {[%clk 0:00:08.4]} 38... Qxd7 {[%clk
0:00:04.4]} 39. Nxd7+ {[%clk 0:00:08.9]} 39... Nxd7 {[%clk 0:00:05.3]} 40. Qb7
{[%clk 0:00:08.5]} 40... Ndc5 {[%clk 0:00:04.1]} 41. Qxb5 {[%clk 0:00:06.4]}
41... Ke7 {[%clk 0:00:05]} 42. Qb4 {[%clk 0:00:06]} 42... e5 {[%clk 0:00:04.9]}
43. Qg4 {[%clk 0:00:06]} 43... Kf8 {[%clk 0:00:04.4]} 44. Qc8+ {[%clk
0:00:05.6]} 44... Ke7 {[%clk 0:00:04.4]} 45. Qc7+ {[%clk 0:00:06.4]} 45... Ke6
{[%clk 0:00:04]} 46. g3 {[%clk 0:00:06.8]} 46... Kf6 {[%clk 0:00:01.4]} 47. Qd8+
{[%clk 0:00:06.7]} 47... Ke6 {[%clk 0:00:01.5]} 48. Kg2 {[%clk 0:00:07.5]} 48...
f6 {[%clk 0:00:01.1]} 49. Qg8+ {[%clk 0:00:07.2]} 49... Kf5 {[%clk 0:00:01.1]}
50. Qxg7 {[%clk 0:00:07.8]} 1-0

[Event "*** SCC Grand Prix: Titled Tuesday Blitz"]
[Site "Chess.com"]
[Date "2020.09.29"]
[Round "5"]
[White "PotapovaM"]
[Black "PowerThinking2650"]
[Result "1-0"]
[WhiteElo "2564"]
[BlackElo "2376"]
[TimeControl "180+1"]
[EndTime "10:56:05 PDT"]
[Termination "PotapovaM won on time"]

1. c4 {[%clk 0:03:00.9]} 1... Nf6 {[%clk 0:02:58.1]} 2. Nc3 {[%clk 0:02:56.4]}
2... g6 {[%clk 0:02:58.1]} 3. d4 {[%clk 0:02:53.9]} 3... Bg7 {[%clk 0:02:58]} 4.
e4 {[%clk 0:02:54.5]} 4... d6 {[%clk 0:02:58.4]} 5. h3 {[%clk 0:02:51]} 5... O-O
{[%clk 0:02:57.7]} 6. Be3 {[%clk 0:02:51.6]} 6... e5 {[%clk 0:02:56.2]} 7. d5
{[%clk 0:02:51.7]} 7... Na6 {[%clk 0:02:56.3]} 8. Nf3 {[%clk 0:02:50.8]} 8...
Nc5 {[%clk 0:02:54.4]} 9. Nd2 {[%clk 0:02:51]} 9... a5 {[%clk 0:02:54.6]} 10. g4
{[%clk 0:02:50.9]} 10... c6 {[%clk 0:02:54.7]} 11. Be2 {[%clk 0:02:50.9]} 11...
a4 {[%clk 0:02:48.1]} 12. h4 {[%clk 0:02:48.5]} 12... Qa5 {[%clk 0:02:44.1]} 13.
Kf1 {[%clk 0:02:42.1]} 13... a3 {[%clk 0:02:08.3]} 14. Qc2 {[%clk 0:02:40.9]}
14... axb2 {[%clk 0:02:00.9]} 15. Qxb2 {[%clk 0:02:41.8]} 15... Nxg4 {[%clk
0:01:51.3]} 16. Bxg4 {[%clk 0:02:15.5]} 16... Bxg4 {[%clk 0:01:52.2]} 17. f3
{[%clk 0:02:15.5]} 17... Bd7 {[%clk 0:01:47]} 18. Kg2 {[%clk 0:02:12.3]} 18...
f5 {[%clk 0:01:24.4]} 19. Nb3 {[%clk 0:02:11.8]} 19... Qb4 {[%clk 0:01:04.5]}
20. Bxc5 {[%clk 0:01:56.5]} 20... dxc5 {[%clk 0:01:04.3]} 21. Rac1 {[%clk
0:01:49.4]} 21... Qxc4 {[%clk 0:00:52.8]} 22. dxc6 {[%clk 0:01:49.1]} 22... Bxc6
{[%clk 0:00:31.6]} 23. Nd5 {[%clk 0:01:45.6]} 23... Qa4 {[%clk 0:00:30.2]} 24.
Ne7+ {[%clk 0:01:45.1]} 24... Kh8 {[%clk 0:00:29.8]} 25. Nxc6 {[%clk 0:01:46]}
25... bxc6 {[%clk 0:00:26.5]} 26. Nxc5 {[%clk 0:01:33.4]} 26... Qxa2 {[%clk
0:00:26.6]} 27. Rc2 {[%clk 0:01:29.8]} 27... Qxb2 {[%clk 0:00:20.1]} 28. Rxb2
{[%clk 0:01:30.7]} 28... fxe4 {[%clk 0:00:21]} 29. Nxe4 {[%clk 0:01:29.9]} 29...
Rfb8 {[%clk 0:00:17.9]} 30. Rc2 {[%clk 0:01:29.4]} 30... Rb6 {[%clk 0:00:17]}
31. h5 {[%clk 0:01:28.6]} 31... gxh5 {[%clk 0:00:16.1]} 32. Rxh5 {[%clk
0:01:27.8]} 32... Rf8 {[%clk 0:00:14.2]} 33. Ng5 {[%clk 0:01:23.3]} 33... h6
{[%clk 0:00:13.5]} 34. Ne4 {[%clk 0:01:21.5]} 34... Kg8 {[%clk 0:00:12.1]} 35.
Rh3 {[%clk 0:01:16.4]} 35... Rf5 {[%clk 0:00:11.6]} 36. Rg3 {[%clk 0:01:15]}
36... Kh7 {[%clk 0:00:11.4]} 37. Rd2 {[%clk 0:01:14.2]} 37... Rf7 {[%clk
0:00:11]} 38. Kh3 {[%clk 0:01:04]} 38... Rb3 {[%clk 0:00:10.1]} 39. Kg2 {[%clk
0:01:02]} 39... Re3 {[%clk 0:00:09.4]} 40. Rc2 {[%clk 0:00:59.9]} 40... Bf8
{[%clk 0:00:06.5]} 41. Rxc6 {[%clk 0:00:59]} 41... Re2+ {[%clk 0:00:06.5]} 42.
Kh3 {[%clk 0:00:56.2]} 42... Bg7 {[%clk 0:00:06.9]} 43. Rc3 {[%clk 0:00:44]}
43... Re1 {[%clk 0:00:05.3]} 44. Kg2 {[%clk 0:00:43.5]} 44... Re2+ {[%clk
0:00:05.1]} 45. Kf1 {[%clk 0:00:43.1]} 45... Rb2 {[%clk 0:00:04.9]} 46. Rh3
{[%clk 0:00:37.6]} 46... Ra7 {[%clk 0:00:04.3]} 47. Rc1 {[%clk 0:00:33.2]} 47...
Raa2 {[%clk 0:00:04.4]} 48. Rd1 {[%clk 0:00:30.3]} 48... Kg6 {[%clk 0:00:04.3]}
49. Rg3+ {[%clk 0:00:29.3]} 49... Kh7 {[%clk 0:00:04.6]} 50. Rh3 {[%clk
0:00:29.4]} 50... Kg6 {[%clk 0:00:04.2]} 51. Rg3+ {[%clk 0:00:23]} 51... Kh7
{[%clk 0:00:04.1]} 52. Kg1 {[%clk 0:00:17]} 52... h5 {[%clk 0:00:03.7]} 53. Rh3
{[%clk 0:00:15.6]} 53... Kg6 {[%clk 0:00:03.2]} 54. Rg3+ {[%clk 0:00:15.6]}
54... Kf7 {[%clk 0:00:02.8]} 55. Rh3 {[%clk 0:00:10.6]} 1-0

[Event "*** SCC Grand Prix: Titled Tuesday Blitz"]
[Site "Chess.com"]
[Date "2020.09.29"]
[Round "5"]
[White "szachuspl"]
[Black "VMikhalevski"]
[Result "1-0"]
[WhiteElo "2537"]
[BlackElo "2710"]
[TimeControl "180+1"]
[EndTime "10:56:07 PDT"]
[Termination "szachuspl won by resignation"]

1. d4 {[%clk 0:03:00.9]} 1... Nf6 {[%clk 0:02:59.1]} 2. c4 {[%clk 0:03:00.1]}
2... g6 {[%clk 0:02:59.5]} 3. Nc3 {[%clk 0:03:00]} 3... d5 {[%clk 0:03:00]} 4.
Nf3 {[%clk 0:02:59.8]} 4... Bg7 {[%clk 0:02:58.7]} 5. h4 {[%clk 0:02:59.5]} 5...
dxc4 {[%clk 0:02:47.8]} 6. e4 {[%clk 0:02:55.9]} 6... Bg4 {[%clk 0:02:47.4]} 7.
Bxc4 {[%clk 0:02:50.5]} 7... O-O {[%clk 0:02:46.7]} 8. Be3 {[%clk 0:02:49.2]}
8... Nc6 {[%clk 0:02:45.6]} 9. Be2 {[%clk 0:02:48.5]} 9... Bxf3 {[%clk
0:02:39.7]} 10. Bxf3 {[%clk 0:02:39.3]} 10... e5 {[%clk 0:02:39.9]} 11. dxe5
{[%clk 0:02:29.8]} 11... Nxe5 {[%clk 0:02:39.9]} 12. Be2 {[%clk 0:02:30.1]}
12... c6 {[%clk 0:02:32.4]} 13. O-O {[%clk 0:02:24.3]} 13... Re8 {[%clk
0:02:29]} 14. Qxd8 {[%clk 0:02:19.6]} 14... Rexd8 {[%clk 0:02:17.2]} 15. Rfd1
{[%clk 0:02:15.2]} 15... b6 {[%clk 0:02:00.4]} 16. f3 {[%clk 0:02:11.1]} 16...
h5 {[%clk 0:01:56.2]} 17. Kf2 {[%clk 0:02:06]} 17... Kf8 {[%clk 0:01:55.6]} 18.
a4 {[%clk 0:02:00.4]} 18... Ke8 {[%clk 0:01:50.9]} 19. a5 {[%clk 0:02:00.2]}
19... b5 {[%clk 0:01:51]} 20. a6 {[%clk 0:01:57.4]} 20... Bf8 {[%clk 0:01:47.9]}
21. Rxd8+ {[%clk 0:01:47.3]} 21... Kxd8 {[%clk 0:01:46.9]} 22. Rd1+ {[%clk
0:01:45.5]} 22... Ke8 {[%clk 0:01:40.2]} 23. Bd4 {[%clk 0:01:32.4]} 23... Nfd7
{[%clk 0:01:38.8]} 24. f4 {[%clk 0:01:29.2]} 24... Nc4 {[%clk 0:01:22.9]} 25.
Bxc4 {[%clk 0:01:23.7]} 25... bxc4 {[%clk 0:01:22.7]} 26. Na4 {[%clk 0:01:21.2]}
26... c5 {[%clk 0:01:17.2]} 27. Bc3 {[%clk 0:01:07.6]} 27... Be7 {[%clk
0:01:14]} 28. g3 {[%clk 0:01:06.9]} 28... Nb6 {[%clk 0:01:07.8]} 29. Ra1 {[%clk
0:01:00.2]} 29... Kd7 {[%clk 0:01:01.4]} 30. Bd2 {[%clk 0:00:54.5]} 30... Kc6
{[%clk 0:00:58.5]} 31. Nc3 {[%clk 0:00:54.5]} 31... Rd8 {[%clk 0:00:57.4]} 32.
Ke2 {[%clk 0:00:54]} 32... Rd3 {[%clk 0:00:50.9]} 33. Be3 {[%clk 0:00:54.2]}
33... Na8 {[%clk 0:00:48]} 34. Ra4 {[%clk 0:00:52.2]} 34... Nb6 {[%clk
0:00:46.9]} 35. Ra5 {[%clk 0:00:50.7]} 35... Bf8 {[%clk 0:00:43.5]} 36. e5
{[%clk 0:00:48.6]} 36... Nd5 {[%clk 0:00:42.5]} 37. Nxd5 {[%clk 0:00:46.8]}
37... Rxd5 {[%clk 0:00:41.6]} 38. Bd2 {[%clk 0:00:42.1]} 38... Kb6 {[%clk
0:00:39.7]} 39. Ra4 {[%clk 0:00:41.2]} 39... Rd4 {[%clk 0:00:34.7]} 40. Bc3
{[%clk 0:00:33.7]} 40... Rd3 {[%clk 0:00:34.6]} 41. Be1 {[%clk 0:00:32.5]} 41...
Kb5 {[%clk 0:00:32.8]} 42. Ra5+ {[%clk 0:00:32.3]} 42... Kc6 {[%clk 0:00:32.5]}
43. Ra4 {[%clk 0:00:32.2]} 43... Kd5 {[%clk 0:00:29.3]} 44. Ra5 {[%clk
0:00:32.3]} 44... Be7 {[%clk 0:00:27]} 45. Rb5 {[%clk 0:00:32.4]} 45... Rb3
{[%clk 0:00:26.9]} 46. Rb7 {[%clk 0:00:27.7]} 46... Ke6 {[%clk 0:00:23.1]} 47.
Bc3 {[%clk 0:00:26]} 47... Rb6 {[%clk 0:00:12.8]} 48. Rxb6+ {[%clk 0:00:25.2]}
48... axb6 {[%clk 0:00:09.5]} 49. a7 {[%clk 0:00:26.1]} 49... b5 {[%clk
0:00:09.8]} 50. a8=Q {[%clk 0:00:26.3]} 50... b4 {[%clk 0:00:10.5]} 51. Qc6+
{[%clk 0:00:26.3]} 51... Kf5 {[%clk 0:00:10.2]} 52. Be1 {[%clk 0:00:23.9]} 52...
Kg4 {[%clk 0:00:09.7]} 53. Qf3+ {[%clk 0:00:23.4]} 53... Kf5 {[%clk 0:00:09.6]}
54. Qd5 {[%clk 0:00:23.9]} 54... f6 {[%clk 0:00:08.7]} 55. e6+ {[%clk
0:00:22.2]} 55... Kg4 {[%clk 0:00:08.5]} 56. Qd7 {[%clk 0:00:21.7]} 56... Bf8
{[%clk 0:00:07.1]} 57. e7+ {[%clk 0:00:22]} 57... f5 {[%clk 0:00:06.3]} 58.
exf8=Q {[%clk 0:00:22]} 58... c3 {[%clk 0:00:06.2]} 59. Qxc5 {[%clk 0:00:18.4]}
59... cxb2 {[%clk 0:00:05.4]} 60. Qxb4 {[%clk 0:00:17.6]} 60... Kh3 {[%clk
0:00:04.6]} 61. Qxb2 {[%clk 0:00:17]} 1-0